fUSD/lending_fUSD_20250521
["ID","MTS","AMOUNT","RATE_DAILY","PERIOD"]
[361811374,1747823480939,-420.0,0.00033424,5]
[361811375,1747823480949,-420.0,0.00033424,5]
[361811376,1747823480959,-731.06,0.00033424,5]
[361811377,1747823480969,-665.75,0.00033424,5]
[361811378,1747823480979,-420.0,0.00033424,5]
[361811379,1747823480988,-420.0,0.00033424,5]
[361811380,1747823480999,-420.0,0.00033424,5]
[361811381,1747823481008,-1010.87,0.00033424,5]
[361811382,1747823481018,-725.49,0.00033424,5]
[361811383,1747823481028,-1218.91,0.00033424,5]
[361811384,1747823481038,-1168.31,0.00033424,5]
[361811385,1747823481047,-1264.38,0.00033424,5]
[361811386,1747823481057,-420.0,0.00033424,5]
[361811387,1747823481067,-420.0,0.00033424,2]
[361811388,1747823481077,-420.0,0.00033424,5]
[361811389,1747823481087,-584.07,0.00033424,5]
[361811390,1747823481097,-3033.08,0.00033424,5]
[361811391,1747823481107,-420.0,0.00033424,5]
[361811392,1747823481117,-323.0372234,0.00033424,5]
[361811393,1747823481126,-420.0,0.00033424,5]
[361811394,1747823481136,-740.34,0.00033424,5]
[361811395,1747823481145,-413.25989477,0.00033424,5]
[361811396,1747823481155,-420.0,0.00033424,5]
[361811397,1747823481165,-420.0,0.00033424,5]
[361811398,1747823481174,-1236.73,0.00033424,5]
[361811399,1747823481183,-420.0,0.00033424,5]
[361811400,1747823481193,-420.0,0.00033424,5]
[361811401,1747823481203,-420.0,0.00033424,5]
[361811402,1747823481212,-718.57,0.00033424,5]
[361811403,1747823481221,-420.0,0.00033424,2]
[361811404,1747823481231,-420.0,0.00033424,5]
[361811405,1747823481241,-2646.97,0.00033424,5]
[361811406,1747823481251,-420.0,0.00033424,5]
[361811407,1747823481261,-420.0,0.00033424,5]
[361811408,1747823481271,-420.0,0.00033424,5]
[361811409,1747823481280,-420.0,0.00033424,5]
[361811410,1747823481291,-3655.51,0.00033424,5]
[361811411,1747823481301,-420.0,0.00033424,5]
[361811412,1747823481311,-420.0,0.00033424,5]
[361811413,1747823481320,-1194.67,0.00033424,5]
[361811414,1747823481331,-637.39,0.00033424,5]
[361811415,1747823481342,-2368.39,0.00033424,5]
[361811416,1747823481353,-932.97,0.00033424,5]
[361811417,1747823481367,-788.04,0.00033424,5]
[361811418,1747823481377,-475.79,0.00033424,5]
[361811419,1747823481387,-469.81,0.00033424,5]
[361811420,1747823481398,-420.0,0.00033424,5]
[361811421,1747823481408,-1192.06,0.00033424,5]
[361811422,1747823481418,-1158.88,0.00033424,5]
[361811423,1747823481427,-2693.72,0.00033424,5]
[361811424,1747823481439,-2741.78,0.00033424,5]
[361811425,1747823481448,-1351.52,0.00033424,5]
[361811426,1747823481457,-420.0,0.00033424,5]
[361811427,1747823481467,-1167.31,0.00033424,5]
[361811428,1747823481476,-420.0,0.00033424,5]
[361811429,1747823481486,-420.0,0.00033424,5]
[361811430,1747823481496,-506.87,0.00033424,5]
[361811431,1747823481506,-420.0,0.00033424,5]
[361811432,1747823481516,-1450.92,0.00033424,5]
[361811433,1747823481526,-420.0,0.00033424,5]
[361811434,1747823481536,-664.46,0.00033424,5]
[361811435,1747823481546,-420.0,0.00033424,5]
[361811436,1747823481555,-2096.4,0.00033424,5]
[361811437,1747823481565,-1675.88,0.00033424,5]
[361811438,1747823481575,-783.68,0.00033424,5]
[361811439,1747823481585,-421.11,0.00033424,5]
[361811440,1747823481595,-420.0,0.00033424,5]
[361811441,1747823481604,-1330.16,0.00033424,5]
[361811442,1747823481615,-655.43,0.00033424,5]
[361811443,1747823481625,-470.23,0.00033424,5]
[361811444,1747823481635,-628.75,0.00033424,5]
[361811445,1747823481645,-789.43,0.00033424,5]
[361811446,1747823481656,-420.0,0.00033424,5]
[361811447,1747823481666,-2066.32,0.00033424,5]
[361811448,1747823481676,-543.38,0.00033424,5]
[361811449,1747823481686,-1884.88,0.00033424,5]
[361811450,1747823481696,-420.0,0.00033424,5]
[361811451,1747823481706,-443.39,0.00033424,5]
[361811452,1747823481716,-420.0,0.00033424,5]
[361811453,1747823481726,-420.0,0.00033424,5]
[361811454,1747823481736,-814.52,0.00033424,5]
[361811455,1747823481747,-420.0,0.00033424,5]
[361811456,1747823481757,-468.75,0.00033424,5]
[361811457,1747823481767,-420.0,0.00033424,5]
[361811458,1747823481776,-2280.59,0.00033424,5]
[361811459,1747823481787,-420.0,0.00033424,5]
[361811460,1747823481796,-420.0,0.00033424,5]
[361811461,1747823481806,-420.0,0.00033424,5]
[361811462,1747823481816,-420.0,0.00033424,5]
[361811463,1747823481825,-420.0,0.00033424,5]
[361811464,1747823481836,-1660.08,0.00033424,5]
[361811465,1747823481845,-891.37,0.00033424,5]
[361811466,1747823481855,-1229.28,0.00033424,5]
[361811467,1747823481866,-420.0,0.00033424,5]
[361811468,1747823481876,-2531.44,0.00033424,5]
[361811469,1747823481885,-420.0,0.00033424,5]
[361811470,1747823481896,-562.73,0.00033424,5]
[361811471,1747823481906,-420.0,0.00033424,5]
[361811472,1747823481916,-420.0,0.00033424,5]
[361811473,1747823481925,-420.0,0.00033424,5]
[361811474,1747823481935,-1520.14,0.00033424,5]
[361811475,1747823481944,-420.0,0.00033424,5]
[361811476,1747823481954,-639.64,0.00033424,5]
[361811477,1747823481963,-420.0,0.00033424,5]
[361811478,1747823481973,-2002.78,0.00033424,5]
[361811479,1747823481982,-420.0,0.00033424,5]
[361811480,1747823481992,-420.0,0.00033424,5]
[361811481,1747823482002,-504.03,0.00033424,5]
[361811482,1747823482011,-420.0,0.00033424,5]
[361811483,1747823482021,-420.0,0.00033424,5]
[361811484,1747823482031,-756.35,0.00033424,5]
[361811485,1747823482040,-1155.6,0.00033424,5]
[361811486,1747823482050,-420.0,0.00033424,5]
[361811487,1747823482060,-2487.3,0.00033424,5]
[361811488,1747823482070,-420.0,0.00033424,5]
[361811489,1747823482080,-240.0,0.00033424,5]
[361811490,1747823482090,-829.63,0.00033424,5]
[361811491,1747823482100,-332.8695012,0.00033424,5]
[361811492,1747823482109,-440.4,0.00033424,5]
[361811493,1747823482119,-420.0,0.00033424,5]
[361811494,1747823482128,-420.0,0.00033424,5]
[361811495,1747823482138,-512.22,0.00033424,5]
[361811496,1747823482148,-1069.06,0.00033424,5]
[361811497,1747823482157,-1131.24,0.00033424,5]
[361811498,1747823482168,-3548.27,0.00033424,5]
[361811499,1747823482178,-420.0,0.00033424,5]
[361811500,1747823482188,-531.37,0.00033424,5]
[361811501,1747823482197,-420.0,0.00033424,5]
[361811502,1747823482208,-438.38,0.00033424,5]
[361811503,1747823482217,-420.0,0.00033424,5]
[361811504,1747823482228,-420.0,0.00033424,5]
[361811505,1747823482237,-1167.92,0.00033424,5]
[361811506,1747823482247,-836.66,0.00033424,5]
[361811507,1747823482257,-1758.59,0.00033424,5]
[361811508,1747823482267,-2244.73,0.00033424,5]
[361811509,1747823482277,-500.0,0.00033424,5]
[361811510,1747823482287,-706.99,0.00033424,5]
[361811511,1747823482296,-1671.68,0.00033424,5]
[361811512,1747823482306,-1303.3,0.00033424,5]
[361811513,1747823482316,-173.40294635,0.00033424,5]
[361811514,1747823482326,-630.7,0.00033424,5]
[361811515,1747823482335,-420.0,0.00033424,5]
[361811516,1747823482345,-420.0,0.00033424,5]
[361811517,1747823482356,-1546.03,0.00033424,5]
[361811518,1747823482367,-1449.1,0.00033424,5]
[361811519,1747823482377,-1084.11,0.00033424,5]
[361811520,1747823482388,-796.16,0.00033424,5]
[361811521,1747823482399,-829.47,0.00033424,5]
[361811522,1747823482408,-420.0,0.00033424,5]
[361811523,1747823482419,-420.0,0.00033424,5]
[361811524,1747823482428,-560.22,0.00033424,5]
[361811525,1747823482439,-2061.87,0.00033424,5]
[361811526,1747823482449,-677.92,0.00033424,5]
[361811527,1747823482459,-1832.34,0.00033424,5]
[361811528,1747823482469,-1759.24,0.00033424,5]
[361811529,1747823482479,-420.0,0.00033424,5]
[361811530,1747823482489,-420.0,0.00033424,5]
[361811531,1747823482500,-2008.9,0.00033424,5]
[361811532,1747823482510,-344.3326806,0.00033424,5]
[361811533,1747823482520,-420.0,0.00033424,5]
[361811534,1747823482530,-603.25,0.00033424,5]
[361811535,1747823482540,-300.0,0.00033424,5]
[361811536,1747823482550,-420.0,0.00033424,5]
[361811537,1747823482560,-359.94873243,0.00033424,5]
[361811538,1747823482570,-3335.62,0.00033424,5]
[361811539,1747823482580,-794.93,0.00033424,5]
[361811540,1747823482590,-420.0,0.00033424,5]
[361811541,1747823482600,-462.11,0.00033424,5]
[361811542,1747823482610,-1384.78,0.00033424,5]
[361811543,1747823482620,-3088.45,0.00033424,5]
[361811544,1747823482630,-3415.98,0.00033424,5]
[361811545,1747823482640,-420.0,0.00033424,5]
[361811546,1747823482650,-420.0,0.00033424,5]
[361811547,1747823482661,-420.0,0.00033424,5]
[361811548,1747823482670,-420.0,0.00033424,5]
[361811549,1747823482679,-475.97,0.00033424,5]
[361811550,1747823482689,-420.0,0.00033424,5]
[361811551,1747823482698,-1441.04,0.00033424,5]
[361811552,1747823482708,-420.0,0.00033424,5]
[361811553,1747823482718,-1360.17,0.00033424,5]
[361811554,1747823482728,-799.95,0.00033424,5]
[361811555,1747823482738,-2905.57,0.00033424,5]
[361811556,1747823482749,-420.0,0.00033424,5]
[361811557,1747823482759,-420.0,0.00033424,5]
[361811558,1747823482771,-1022.16,0.00033424,5]
[361811559,1747823482781,-420.0,0.00033424,5]
[361811560,1747823482792,-420.0,0.00033424,5]
[361811561,1747823482802,-420.0,0.00033424,5]
[361811562,1747823482812,-2154.53,0.00033424,5]
[361811563,1747823482823,-420.0,0.00033424,5]
[361811564,1747823482832,-1412.77,0.00033424,5]
[361811565,1747823482842,-479.97551997,0.00033424,5]
[361811566,1747823482852,-1804.92,0.00033424,5]
[361811567,1747823482960,-931.82,0.00033424,5]
[361811568,1747823482971,-420.0,0.00033424,5]
[361811569,1747823482981,-3820.81,0.00033424,5]
[361811570,1747823482991,-420.0,0.00033424,5]
[361811571,1747823483001,-420.0,0.00033424,5]
[361811572,1747823483011,-420.0,0.00033424,5]
[361811573,1747823483021,-446.52,0.00033424,5]
[361811574,1747823483031,-3379.22,0.00033424,5]
[361811575,1747823483041,-552.29,0.00033424,5]
[361811576,1747823483050,-420.0,0.00033424,5]
[361811577,1747823483060,-2204.62,0.00033424,5]
[361811578,1747823483069,-1365.61,0.00033424,5]
[361811579,1747823483079,-739.98,0.00033424,5]
[361811580,1747823483088,-1686.16,0.00033424,5]
[361811581,1747823483098,-420.0,0.00033424,5]
[361811582,1747823483108,-638.15,0.00033424,5]
[361811583,1747823483117,-212.3221177,0.00033424,5]
[361811584,1747823483127,-2851.0,0.00033424,5]
[361811585,1747823483137,-420.0,0.00033424,5]
[361811586,1747823483147,-420.0,0.00033424,5]
[361811587,1747823483156,-420.0,0.00033424,5]
[361811588,1747823483166,-669.03,0.00033424,5]
[361811589,1747823483176,-641.93,0.00033424,5]
[361811590,1747823483186,-1513.514558,0.00033424,5]
[361811591,1747823483196,-1056.24,0.00033424,5]
[361811592,1747823483205,-605.2,0.00033424,5]
[361811593,1747823483214,-420.0,0.00033424,5]
[361811594,1747823483224,-420.0,0.00033424,5]
[361811595,1747823483234,-420.0,0.00033424,5]
[361811596,1747823483244,-420.0,0.00033424,5]
[361811597,1747823483254,-3414.72,0.00033424,5]
[361811598,1747823483263,-420.0,0.00033424,5]
[361811599,1747823483273,-456.44,0.00033424,5]
[361811600,1747823483283,-2738.58,0.00033424,5]
[361811601,1747823483293,-626.72,0.00033424,5]
[361811602,1747823483303,-1961.22,0.00033424,5]
[361811603,1747823483314,-4019.16,0.00033424,5]
[361811604,1747823483323,-420.0,0.00033424,5]
[361811605,1747823483333,-420.0,0.00033424,5]
[361811606,1747823483342,-420.0,0.00033424,5]
[361811607,1747823483356,-420.0,0.00033424,5]
[361811608,1747823483366,-437.02,0.00033424,5]
[361811609,1747823483375,-501.19,0.00033424,5]
[361811610,1747823483385,-420.0,0.00033424,5]
[361811611,1747823483395,-420.0,0.00033424,5]
[361811612,1747823483405,-3829.73,0.00033424,5]
[361811613,1747823483415,-1171.35,0.00033424,5]
[361811614,1747823483424,-1195.86,0.00033424,5]
[361811615,1747823483435,-1602.68,0.00033424,5]
[361811616,1747823483444,-1595.56,0.00033424,5]
[361811617,1747823483454,-268.40083536,0.00033424,5]
[361811618,1747823483463,-420.0,0.00033424,5]
[361811619,1747823483472,-420.0,0.00033424,5]
[361811620,1747823483482,-1403.63,0.00033424,5]
[361811621,1747823483491,-420.0,0.00033424,5]
[361811622,1747823483501,-1620.22,0.00033424,5]
[361811623,1747823483510,-2127.07,0.00033424,5]
[361811624,1747823483520,-1651.18,0.00033424,5]
[361811625,1747823483530,-975.42,0.00033424,5]
[361811626,1747823483541,-420.0,0.00033424,5]
[361811627,1747823483551,-663.27,0.00033424,5]
[361811628,1747823483560,-4718.07,0.00033424,5]
[361811629,1747823483570,-560.95,0.00033424,5]
[361811630,1747823483579,-701.41,0.00033424,5]
[361811631,1747823483589,-950.44,0.00033424,5]
[361811632,1747823483599,-420.0,0.00033424,5]
[361811633,1747823483608,-708.42,0.00033424,5]
[361811634,1747823483617,-3358.3,0.00033424,5]
[361811635,1747823483626,-420.0,0.00033424,5]
[361811636,1747823483636,-3071.77,0.00033424,5]
[361811637,1747823483645,-1131.94,0.00033424,5]
[361811638,1747823483654,-392.20451598,0.00033424,5]
[361811639,1747823483664,-1890.69,0.00033424,5]
[361811640,1747823483673,-420.0,0.00033424,5]
[361811641,1747823483683,-2588.8,0.00033424,5]
[361811642,1747823483693,-1081.97,0.00033424,5]
[361811643,1747823483703,-447.09,0.00033424,5]
[361811644,1747823483712,-202.65425642,0.00033424,5]
[361811645,1747823483722,-1061.79,0.00033424,5]
[361811646,1747823483731,-3165.26,0.00033424,5]
[361811647,1747823483742,-1578.73,0.00033424,5]
[361811648,1747823483752,-420.0,0.00033424,5]
[361811649,1747823483762,-420.0,0.00033424,5]
[361811650,1747823483771,-801.31,0.00033424,5]
[361811651,1747823483781,-437.54,0.00033424,5]
[361811652,1747823483791,-300.0,0.00033424,5]
[361811653,1747823483800,-420.0,0.00033424,5]
[361811654,1747823483811,-1117.87,0.00033424,5]
[361811655,1747823483820,-590.41,0.00033424,5]
[361811656,1747823483830,-646.24,0.00033424,5]
[361811657,1747823483839,-469.33,0.00033424,5]
[361811658,1747823483849,-420.0,0.00033424,5]
[361811659,1747823483859,-1582.05,0.00033424,5]
[361811660,1747823483869,-420.0,0.00033424,5]
[361811661,1747823483879,-944.65,0.00033424,5]
[361811662,1747823483888,-420.0,0.00033424,5]
[361811663,1747823483898,-420.0,0.00033424,5]
[361811664,1747823483911,-1388.27,0.00033424,5]
[361811665,1747823483921,-512.93265785,0.00033424,5]
[361811666,1747823483931,-817.62,0.00033424,5]
[361811667,1747823483941,-420.0,0.00033424,5]
[361811668,1747823483951,-420.0,0.00033424,5]
[361811669,1747823483962,-420.0,0.00033424,5]
[361811670,1747823483971,-1313.42,0.00033424,5]
[361811671,1747823483981,-2712.821305,0.00033424,5]
[361811672,1747823483991,-2499.18,0.00033424,5]
[361811673,1747823484000,-420.0,0.00033424,5]
[361811674,1747823484010,-420.0,0.00033424,5]
[361811675,1747823484020,-591.99,0.00033424,5]
[361811676,1747823484032,-420.0,0.00033424,5]
[361811677,1747823484042,-420.0,0.00033424,5]
[361811678,1747823484052,-2676.06,0.00033424,5]
[361811679,1747823484062,-420.0,0.00033424,5]
[361811680,1747823484071,-420.0,0.00033424,5]
[361811681,1747823484080,-1630.17,0.00033424,5]
[361811682,1747823484091,-2046.62,0.00033424,5]
[361811683,1747823484100,-707.44,0.00033424,5]
[361811684,1747823484110,-420.0,0.00033424,5]
[361811685,1747823484119,-420.0,0.00033424,5]
[361811686,1747823484128,-420.0,0.00033424,5]
[361811687,1747823484138,-524.92,0.00033424,5]
[361811688,1747823484147,-844.05,0.00033424,5]
[361811689,1747823484157,-603.94,0.00033424,5]
[361811690,1747823484166,-2122.24,0.00033424,5]
[361811691,1747823484175,-364.82801466,0.00033424,5]
[361811692,1747823484184,-5021.23,0.00033424,5]
[361811693,1747823484193,-1529.49,0.00033424,5]
[361811694,1747823484202,-1386.81,0.00033424,5]
[361811695,1747823484212,-1250.7,0.00033424,5]
[361811696,1747823484221,-420.0,0.00033424,5]
[361811697,1747823484230,-1682.48,0.00033424,5]
[361811698,1747823484240,-730.49,0.00033424,5]
[361811699,1747823484251,-420.0,0.00033424,5]
[361811700,1747823484260,-447.9,0.00033424,5]
[361811701,1747823484270,-420.0,0.00033424,5]
[361811702,1747823484281,-1324.88,0.00033424,5]
[361811703,1747823484291,-2229.66,0.00033424,5]
[361811704,1747823484301,-472.1,0.00033424,5]
[361811705,1747823484310,-420.0,0.00033424,5]
[361811706,1747823484320,-434.93,0.00033424,5]
[361811707,1747823484329,-420.0,0.00033424,5]
[361811708,1747823484338,-1282.33,0.00033424,5]
[361811709,1747823484347,-420.0,0.00033424,5]
[361811710,1747823484358,-2643.47,0.00033424,5]
[361811711,1747823484370,-444.34,0.00033424,5]
[361811712,1747823484382,-420.0,0.00033424,5]
[361811713,1747823484393,-420.0,0.00033424,5]
[361811714,1747823484406,-1343.09,0.00033424,5]
[361811715,1747823484416,-600.65,0.00033424,5]
[361811716,1747823484425,-1076.93,0.00033424,5]
[361811717,1747823484434,-420.0,0.00033424,5]
[361811718,1747823484443,-1416.84,0.00033424,5]
[361811719,1747823484453,-1332.5,0.00033424,5]
[361811720,1747823484462,-1392.97,0.00033424,5]
[361811721,1747823484472,-682.19,0.00033424,5]
[361811722,1747823484482,-420.0,0.00033424,5]
[361811723,1747823484491,-438.34,0.00033424,5]
[361811724,1747823484501,-420.0,0.00033424,5]
[361811725,1747823484510,-791.4,0.00033424,5]
[361811726,1747823484521,-1000.0,0.00033424,30]
[361811727,1747823484530,-632.83,0.00033424,5]
[361811728,1747823484541,-420.0,0.00033424,5]
[361811729,1747823484551,-420.0,0.00033424,5]
[361811730,1747823484561,-713.78,0.00033424,5]
[361811731,1747823484572,-420.0,0.00033424,5]
[361811732,1747823484581,-2568.63,0.00033424,5]
[361811733,1747823484590,-420.0,0.00033424,5]
[361811734,1747823484600,-420.0,0.00033424,5]
[361811735,1747823484609,-1222.57,0.00033424,5]
[361811736,1747823484618,-420.0,0.00033424,5]
[361811737,1747823484627,-420.0,0.00033424,5]
[361811738,1747823484637,-420.0,0.00033424,5]
[361811739,1747823484646,-1185.11,0.00033424,5]
[361811740,1747823484656,-420.0,0.00033424,5]
[361811741,1747823484665,-3400.95,0.00033424,5]
[361811742,1747823484674,-420.0,0.00033424,5]
[361811743,1747823484684,-618.99,0.00033424,5]
[361811744,1747823484694,-559.3,0.00033424,5]
[361811745,1747823484704,-2592.87,0.00033424,5]
[361811746,1747823484714,-420.0,0.00033424,5]
[361811747,1747823484724,-729.48,0.00033424,5]
[361811748,1747823484734,-1036.77,0.00033424,5]
[361811749,1747823484743,-420.0,0.00033424,5]
[361811750,1747823484753,-912.69,0.00033424,5]
[361811751,1747823484763,-2077.17,0.00033424,5]
[361811752,1747823484773,-474.23,0.00033424,5]
[361811753,1747823484783,-633.02,0.00033424,5]
[361811754,1747823484792,-2143.32,0.00033424,5]
[361811755,1747823484802,-420.0,0.00033424,5]
[361811756,1747823484812,-2433.64,0.00033424,5]
[361811757,1747823484822,-533.60840918,0.00033424,5]
[361811758,1747823484831,-2156.45,0.00033424,5]
[361811759,1747823484841,-680.33,0.00033424,5]
[361811760,1747823484852,-420.0,0.00033424,5]
[361811761,1747823484862,-1587.63,0.00033424,5]
[361811762,1747823484871,-3338.68,0.00033424,5]
[361811763,1747823484881,-420.0,0.00033424,5]
[361811764,1747823484891,-420.0,0.00033424,5]
[361811765,1747823484901,-2132.67,0.00033424,5]
[361811766,1747823484912,-539.66,0.00033424,5]
[361811767,1747823484922,-1108.21,0.00033424,5]
[361811768,1747823484932,-420.0,0.00033424,5]
[361811769,1747823484942,-1448.56,0.00033424,5]
[361811770,1747823484951,-1231.09,0.00033424,5]
[361811771,1747823484961,-1449.81,0.00033424,5]
[361811772,1747823484970,-420.0,0.00033424,5]
[361811773,1747823484980,-2507.82,0.00033424,5]
[361811774,1747823484990,-461.55,0.00033424,5]
[361811775,1747823484999,-420.0,0.00033424,5]
[361811776,1747823485009,-2269.59,0.00033424,5]
[361811777,1747823485020,-3289.43,0.00033424,5]
[361811778,1747823485030,-1017.25,0.00033424,5]
[361811779,1747823485040,-420.0,0.00033424,5]
[361811780,1747823485049,-1196.46,0.00033424,5]
[361811781,1747823485058,-420.0,0.00033424,5]
[361811782,1747823485070,-420.0,0.00033424,5]
[361811783,1747823485080,-1902.38,0.00033424,5]
[361811784,1747823485090,-4528.11,0.00033424,5]
[361811785,1747823485100,-420.0,0.00033424,5]
[361811786,1747823485109,-437.58,0.00033424,5]
[361811787,1747823485119,-2709.01,0.00033424,5]
[361811788,1747823485128,-934.68,0.00033424,5]
[361811789,1747823485138,-3000.52,0.00033424,5]
[361811790,1747823485148,-644.31,0.00033424,5]
[361811791,1747823485157,-2558.61,0.00033424,5]
[361811792,1747823485167,-420.0,0.00033424,5]
[361811793,1747823485176,-919.21,0.00033424,5]
[361811794,1747823485187,-420.0,0.00033424,5]
[361811795,1747823485196,-420.0,0.00033424,5]
[361811796,1747823485206,-3800.75,0.00033424,5]
[361811797,1747823485215,-1016.83,0.00033424,5]
[361811798,1747823485225,-420.0,0.00033424,5]
[361811799,1747823485234,-420.0,0.00033424,5]
[361811800,1747823485244,-420.0,0.00033424,5]
[361811801,1747823485254,-1283.86,0.00033424,5]
[361811802,1747823485263,-5012.54,0.00033424,5]
[361811803,1747823485272,-420.0,0.00033424,5]
[361811804,1747823485281,-4257.36,0.00033424,5]
[361811805,1747823485291,-420.0,0.00033424,5]
[361811806,1747823485300,-420.0,0.00033424,5]
[361811807,1747823485310,-420.0,0.00033424,5]
[361811808,1747823485319,-2661.46,0.00033424,5]
[361811809,1747823485327,-420.0,0.00033424,5]
[361811810,1747823485337,-420.0,0.00033424,5]
[361811811,1747823485345,-420.0,0.00033424,5]
[361811812,1747823485355,-7175.57,0.00033424,5]
[361811813,1747823485368,-420.0,0.00033424,5]
[361811814,1747823485377,-1626.84,0.00033424,5]
[361811815,1747823485387,-171.32415057,0.00033424,5]
[361811816,1747823485399,-420.0,0.00033424,5]
[361811817,1747823485409,-7478.95,0.00033424,5]
[361811818,1747823485418,-1297.42,0.00033424,5]
[361811819,1747823485428,-1050.66,0.00033424,5]
[361811820,1747823485438,-420.0,0.00033424,5]
[361811821,1747823485447,-3186.22,0.00033424,5]
[361811822,1747823485456,-459.54,0.00033424,5]
[361811823,1747823485467,-1603.59,0.00033424,5]
[361811824,1747823485476,-420.0,0.00033424,5]
[361811825,1747823485486,-1706.72,0.00033424,5]
[361811826,1747823485496,-1118.07,0.00033424,5]
[361811827,1747823485505,-1819.17,0.00033424,5]
[361811828,1747823485515,-3456.53,0.00033424,5]
[361811829,1747823485524,-420.0,0.00033424,5]
[361811830,1747823485534,-477.62,0.00033424,5]
[361811831,1747823485544,-500.47,0.00033424,5]
[361811832,1747823485554,-457.84828991,0.00033424,5]
[361811833,1747823485563,-1245.18,0.00033424,5]
[361811834,1747823485572,-485.82,0.00033424,5]
[361811835,1747823485583,-864.67,0.00033424,5]
[361811836,1747823485591,-1044.28,0.00033424,5]
[361811837,1747823485601,-2279.99,0.00033424,5]
[361811838,1747823485611,-483.53,0.00033424,5]
[361811839,1747823485620,-420.0,0.00033424,5]
[361811840,1747823485630,-263.03857024,0.00033424,5]
[361811841,1747823485641,-420.0,0.00033424,5]
[361811842,1747823485650,-1093.42,0.00033424,5]
[361811843,1747823485660,-773.61,0.00033424,5]
[361811844,1747823485670,-420.0,0.00033424,5]
[361811845,1747823485679,-1587.6,0.00033424,5]
[361811846,1747823485689,-2000.0,0.00033424,5]
[361811847,1747823485698,-478.74,0.00033424,5]
[361811848,1747823485708,-3023.35,0.00033424,5]
[361811849,1747823485718,-2681.61,0.00033424,5]
[361811850,1747823485728,-420.0,0.00033424,5]
[361811851,1747823485738,-3921.51,0.00033424,5]
[361811852,1747823485747,-774.74,0.00033424,5]
[361811853,1747823485757,-420.0,0.00033424,5]
[361811854,1747823485767,-420.0,0.00033424,5]
[361811855,1747823485776,-11832.32,0.00033424,5]
[361811856,1747823485786,-1140.49,0.00033424,5]
[361811857,1747823485796,-716.85,0.00033424,5]
[361811858,1747823485806,-1451.14,0.00033424,5]
[361811859,1747823485815,-4169.63,0.00033424,5]
[361811860,1747823485825,-614.3,0.00033424,5]
[361811861,1747823485834,-1980.16,0.00033424,5]
[361811862,1747823485844,-1064.83,0.00033424,5]
[361811863,1747823485854,-1031.8,0.00033424,5]
[361811864,1747823485864,-2328.19,0.00033424,5]
[361811865,1747823485874,-420.0,0.00033424,5]
[361811866,1747823485883,-595.22,0.00033424,5]
[361811867,1747823485893,-2178.09,0.00033424,5]
[361811868,1747823485903,-420.0,0.00033424,5]
[361811869,1747823485912,-12779.36,0.00033424,5]
[361811870,1747823485927,-3199.69,0.00033424,5]
[361811871,1747823485936,-420.0,0.00033424,5]
[361811872,1747823485946,-464.93,0.00033424,5]
[361811873,1747823485956,-1385.93,0.00033424,5]